[Event "Masters Tournament (MTO)"]
[Site "Biel, Switzerland"]
[Date "2026.07.20"]
[Round "7.43"]
[White "Oestmann, Lukas"]
[Black "Hornung, Hans"]
[Result "0-1"]
[TimeControl "100+30+30sec/move"]
[WhiteTitle "-"]
[BlackTitle "-"]
[WhiteFideId "1326457"]
[BlackFideId "4615140"]
[WhiteElo "1998"]
[BlackElo "1924"]

1. e4 {[%clk 01:40:57]} e5 {[%clk 01:40:48]} {[%emt 00:00:12]} 2. Nf3 {[%clk
01:41:19]} {[%emt 00:00:10]} Nc6 {[%clk 01:41:00]} {[%emt 00:00:17]} 3. Bb5
{[%clk 01:41:47]} {[%emt 00:00:03]} a6 {[%clk 01:41:19]} {[%emt 00:00:10]} 4.
Ba4 {[%clk 01:42:14]} {[%emt 00:00:03]} Nf6 {[%clk 01:41:23]} {[%emt 00:00:24]}
5. O-O {[%clk 01:42:37]} {[%emt 00:00:08]} d6 {[%clk 01:41:14]} {[%emt
00:00:37]} 6. Re1 {[%clk 01:43:00]} {[%emt 00:00:09]} Bd7 {[%clk 01:41:05]}
{[%emt 00:00:39]} 7. c3 {[%clk 01:43:22]} {[%emt 00:00:09]} g6 {[%clk
01:40:50]} {[%emt 00:00:44]} 8. d4 {[%clk 01:43:48]} {[%emt 00:00:04]} Bg7
{[%clk 01:40:27]} {[%emt 00:00:53]} 9. h3 {[%clk 01:40:32]} {[%emt 00:03:46]}
O-O {[%clk 01:40:36]} {[%emt 00:00:21]} 10. Bc2 {[%clk 01:36:00]} {[%emt
00:05:02]} h6 {[%clk 01:32:45]} {[%emt 00:08:21]} 11. Be3 {[%clk 01:34:54]}
{[%emt 00:01:37]} Nh5 {[%clk 01:24:36]} {[%emt 00:08:37]} 12. Qd2 {[%clk
01:28:16]} {[%emt 00:07:08]} g5 {[%clk 01:19:15]} {[%emt 00:05:51]} 13. g4
{[%clk 01:21:09]} {[%emt 00:07:38]} Nf4 {[%clk 01:17:24]} {[%emt 00:02:21]} 14.
Bxf4 {[%clk 01:21:18]} {[%emt 00:00:22]} gxf4 {[%clk 01:17:09]} {[%emt
00:00:44]} 15. Kh2 {[%clk 01:17:55]} {[%emt 00:03:52]} Qf6 {[%clk 01:11:06]}
{[%emt 00:06:34]} 16. dxe5 {[%clk 01:12:50]} {[%emt 00:05:36]} Nxe5 {[%clk
01:11:25]} {[%emt 00:00:10]} 17. Nxe5 {[%clk 01:13:02]} {[%emt 00:00:18]} Qxe5
{[%clk 01:11:45]} {[%emt 00:00:10]} 18. Qd5 {[%clk 01:11:26]} {[%emt 00:02:07]}
Bc6 {[%clk 01:05:13]} {[%emt 00:07:00]} 19. Qxe5 {[%clk 01:10:23]} {[%emt
00:01:34]} dxe5 {[%clk 01:05:29]} {[%emt 00:00:13]} 20. Nd2 {[%clk 01:08:09]}
{[%emt 00:02:44]} Rfd8 {[%clk 01:04:30]} {[%emt 00:01:30]} 21. Rad1 {[%clk
01:03:11]} {[%emt 00:05:28]} a5 {[%clk 01:00:28]} {[%emt 00:04:33]} 22. Nf3
{[%clk 00:58:16]} {[%emt 00:05:24]} Kf8 {[%clk 00:58:48]} {[%emt 00:02:08]} 23.
h4 {[%clk 00:55:26]} {[%emt 00:03:21]} Bd7 {[%clk 00:53:49]} {[%emt 00:05:28]}
24. Kh3 {[%clk 00:50:33]} {[%emt 00:05:25]} h5 {[%clk 00:51:21]} {[%emt
00:02:58]} 25. Nh2 {[%clk 00:50:41]} {[%emt 00:00:22]} Ke8 {[%clk 00:50:36]}
{[%emt 00:01:15]} 26. f3 {[%clk 00:49:16]} {[%emt 00:01:55]} Bf6 {[%clk
00:49:21]} {[%emt 00:01:44]} 27. Rh1 {[%clk 00:42:04]} {[%emt 00:07:44]} a4
{[%clk 00:40:27]} {[%emt 00:09:24]} 28. Kg2 {[%clk 00:36:53]} {[%emt 00:05:40]}
Be6 {[%clk 00:38:57]} {[%emt 00:02:00]} 29. gxh5 {[%clk 00:33:10]} {[%emt
00:04:13]} Ke7 {[%clk 00:35:52]} {[%emt 00:03:35]} 30. Ng4 {[%clk 00:25:06]}
{[%emt 00:08:34]} Rg8 {[%clk 00:35:13]} {[%emt 00:01:07]} 31. Kf2 {[%clk
00:15:56]} {[%emt 00:09:42]} a3 {[%clk 00:32:41]} {[%emt 00:03:02]} 32. Nxf6
{[%clk 00:09:36]} {[%emt 00:06:50]} Kxf6 {[%clk 00:32:59]} {[%emt 00:00:12]} 33.
b3 {[%clk 00:09:55]} {[%emt 00:00:12]} Rh8 {[%clk 00:30:35]} {[%emt 00:02:54]}
34. Bd3 {[%clk 00:08:05]} {[%emt 00:02:19]} Rxh5 {[%clk 00:26:34]} {[%emt
00:04:29]} 35. Rh2 {[%clk 00:07:53]} {[%emt 00:00:42]} Rah8 {[%clk 00:24:29]}
{[%emt 00:02:37]} 36. Rdh1 {[%clk 00:07:49]} {[%emt 00:00:34]} b6 {[%clk
00:22:32]} {[%emt 00:02:27]} 37. Ke2 {[%clk 00:07:33]} {[%emt 00:00:43]} Rg8
{[%clk 00:22:30]} {[%emt 00:00:34]} 38. Kd2 {[%clk 00:05:45]} {[%emt 00:02:19]}
Rg3 {[%clk 00:17:11]} {[%emt 00:05:49]} 39. Be2 {[%clk 00:05:58]} {[%emt
00:00:16]} Kg6 {[%clk 00:15:46]} {[%emt 00:01:54]} 40. c4 {[%clk 00:04:24]}
{[%emt 00:02:05]} c5 {[%clk 00:14:51]} {[%emt 00:01:26]} 41. Kc3 {[%clk
00:29:18]} {[%emt 00:05:36]} f5 {[%clk 00:44:02]} {[%emt 00:01:17]} 42. exf5+
{[%clk 00:26:12]} {[%emt 00:03:38]} Bxf5 {[%clk 00:44:13]} {[%emt 00:00:18]} 43.
b4 {[%clk 00:20:35]} {[%emt 00:06:09]} e4 {[%clk 00:43:08]} {[%emt 00:01:35]}
44. bxc5 {[%clk 00:18:52]} {[%emt 00:02:13]} bxc5 {[%clk 00:43:20]} {[%emt
00:00:17]} 45. Rf2 {[%clk 00:16:58]} {[%emt 00:02:24]} Kf6 {[%clk 00:37:23]}
{[%emt 00:06:27]} 46. Kb3 {[%clk 00:14:26]} {[%emt 00:03:02]} Rh8 {[%clk
00:35:15]} {[%emt 00:02:37]} 47. Kxa3 {[%clk 00:13:51]} {[%emt 00:01:06]} Rb8
{[%clk 00:35:01]} {[%emt 00:00:44]} 48. Bd1 {[%clk 00:13:45]} {[%emt 00:00:37]}
Rg7 {[%clk 00:33:06]} {[%emt 00:02:24]} 49. Bb3 {[%clk 00:12:44]} {[%emt
00:01:31]} e3 {[%clk 00:33:10]} {[%emt 00:00:26]} 50. Rfh2 {[%clk 00:12:48]}
{[%emt 00:00:25]} Rg3 {[%clk 00:30:07]} {[%emt 00:03:34]} 51. Rf1 {[%clk
00:11:34]} {[%emt 00:01:44]} Bd3 {[%clk 00:27:47]} {[%emt 00:02:49]} 52. Rd1
{[%clk 00:08:06]} {[%emt 00:03:59]} e2 {[%clk 00:27:27]} {[%emt 00:00:49]} 53.
Re1 {[%clk 00:08:35]} {[%emt 00:00:02]} Rxf3 {[%clk 00:27:25]} {[%emt
00:00:31]} 54. Kb2 {[%clk 00:06:07]} {[%emt 00:02:58]} Re3 {[%clk 00:26:37]}
{[%emt 00:01:19]} 55. Kc3 {[%clk 00:05:24]} {[%emt 00:01:12]} Be4+ {[%clk
00:25:24]} {[%emt 00:01:42]} 56. Kd2 {[%clk 00:05:43]} {[%emt 00:00:12]} Rd8+
{[%clk 00:25:43]} {[%emt 00:00:12]} 57. Kc1 {[%clk 00:05:55]} {[%emt 00:00:18]}
f3 {[%clk 00:25:10]} {[%emt 00:01:02]} 58. h5 {[%clk 00:05:21]} {[%emt
00:01:05]} Rc3+ {[%clk 00:24:17]} {[%emt 00:01:22]} 59. Kb2 {[%clk 00:05:42]}
{[%emt 00:00:10]} Rcd3 {[%clk 00:24:28]} {[%emt 00:00:17]} 60. Kc1 {[%clk
00:04:16]} {[%emt 00:01:58]} Ke5 {[%clk 00:21:21]} {[%emt 00:03:37]} 61. h6
{[%clk 00:03:54]} {[%emt 00:00:53]} Rh8 {[%clk 00:19:56]} {[%emt 00:01:52]} 62.
Kb2 {[%clk 00:02:37]} {[%emt 00:01:49]} Kd4 {[%clk 00:19:41]} {[%emt 00:00:43]}
63. Bc2 {[%clk 00:02:52]} {[%emt 00:00:17]} Rd2 {[%clk 00:19:52]} {[%emt
00:00:17]} 0-1

[Event "Masters Tournament (MTO)"]
[Site "Biel, Switzerland"]
[Date "2026.07.20"]
[Round "7.44"]
[White "Ruchat, Blaise"]
[Black "Wiesmann, Dominique"]
[Result "1-0"]
[TimeControl "100+30+30sec/move"]
[WhiteTitle "-"]
[BlackTitle "-"]
[WhiteFideId "1328921"]
[BlackFideId "1308262"]
[WhiteElo "1912"]
[BlackElo "1978"]

1. c4 {[%clk 01:38:34]} {[%emt 00:02:16]} d6 {[%clk 01:40:39]} {[%emt
00:00:30]} 2. d4 {[%clk 01:37:49]} {[%emt 00:01:16]} e5 {[%clk 01:41:03]}
{[%emt 00:00:05]} 3. Nf3 {[%clk 01:37:48]} {[%emt 00:00:31]} e4 {[%clk
01:41:27]} {[%emt 00:00:06]} 4. Ng5 {[%clk 01:37:05]} {[%emt 00:01:13]} f5
{[%clk 01:41:48]} {[%emt 00:00:09]} 5. Nc3 {[%clk 01:19:12]} {[%emt 00:18:24]}
Nf6 {[%clk 01:39:53]} {[%emt 00:02:24]} 6. e3 {[%clk 01:18:51]} {[%emt
00:00:52]} c6 {[%clk 01:36:16]} {[%emt 00:04:06]} 7. Be2 {[%clk 01:11:52]}
{[%emt 00:07:29]} Be7 {[%clk 01:32:09]} {[%emt 00:04:37]} 8. O-O {[%clk
01:10:36]} {[%emt 00:01:46]} O-O {[%clk 01:31:51]} {[%emt 00:00:48]} 9. f3
{[%clk 01:08:13]} {[%emt 00:02:53]} d5 {[%clk 01:26:03]} {[%emt 00:06:18]} 10.
Qb3 {[%clk 01:03:14]} {[%emt 00:05:29]} h6 {[%clk 01:13:44]} {[%emt 00:12:49]}
11. Nh3 {[%clk 01:03:07]} {[%emt 00:00:38]} g5 {[%clk 01:13:53]} {[%emt
00:00:20]} 12. Nf2 {[%clk 01:01:55]} {[%emt 00:01:42]} Kg7 {[%clk 01:07:38]}
{[%emt 00:06:46]} 13. Bd2 {[%clk 00:56:01]} {[%emt 00:06:23]} b6 {[%clk
01:06:58]} {[%emt 00:01:11]} 14. cxd5 {[%clk 00:46:24]} {[%emt 00:10:06]} cxd5
{[%clk 01:06:37]} {[%emt 00:00:51]} 15. Rac1 {[%clk 00:43:32]} {[%emt
00:03:22]} exf3 {[%clk 00:54:24]} {[%emt 00:12:44]} 16. gxf3 {[%clk 00:41:49]}
{[%emt 00:02:11]} Nc6 {[%clk 00:47:53]} {[%emt 00:07:02]} 17. Bb5 {[%clk
00:32:05]} {[%emt 00:10:15]} Na5 {[%clk 00:46:42]} {[%emt 00:01:40]} 18. Qc2
{[%clk 00:30:29]} {[%emt 00:02:06]} Nc4 {[%clk 00:42:16]} {[%emt 00:04:56]} 19.
Nd3 {[%clk 00:26:12]} {[%emt 00:04:47]} a6 {[%clk 00:37:57]} {[%emt 00:04:50]}
20. Bxc4 {[%clk 00:26:30]} {[%emt 00:00:11]} dxc4 {[%clk 00:38:20]} {[%emt
00:00:07]} 21. Ne5 {[%clk 00:26:40]} {[%emt 00:00:20]} Qc7 {[%clk 00:37:48]}
{[%emt 00:01:02]} 22. Ne2 {[%clk 00:19:25]} {[%emt 00:07:45]} Be6 {[%clk
00:33:47]} {[%emt 00:04:31]} 23. Ng3 {[%clk 00:18:46]} {[%emt 00:01:09]} Nd5
{[%clk 00:31:51]} {[%emt 00:02:26]} 24. e4 {[%clk 00:14:07]} {[%emt 00:05:08]}
Nf6 {[%clk 00:26:55]} {[%emt 00:05:26]} 25. exf5 {[%clk 00:13:11]} {[%emt
00:01:27]} Bd5 {[%clk 00:27:19]} {[%emt 00:00:06]} 26. Ne4 {[%clk 00:13:01]}
{[%emt 00:00:40]} b5 {[%clk 00:26:22]} {[%emt 00:01:27]} 27. Be3 {[%clk
00:09:14]} {[%emt 00:04:17]} Qb7 {[%clk 00:22:17]} {[%emt 00:04:36]} 28. Qd2
{[%clk 00:08:55]} {[%emt 00:00:48]} Nxe4 {[%clk 00:20:29]} {[%emt 00:02:19]} 29.
fxe4 {[%clk 00:09:06]} {[%emt 00:00:18]} Bxe4 {[%clk 00:20:48]} {[%emt
00:00:10]} 30. h4 {[%clk 00:07:12]} {[%emt 00:02:25]} Qd5 {[%clk 00:15:51]}
{[%emt 00:05:27]} 31. Ng6 {[%clk 00:06:11]} {[%emt 00:01:31]} Bf6 {[%clk
00:15:12]} {[%emt 00:01:09]} 32. Nxf8 {[%clk 00:03:25]} {[%emt 00:03:16]} Rxf8
{[%emt 00:01:12]} 33. Qf2 {[%clk 00:02:53]} gxh4 {[%clk 00:13:20]} {[%emt
00:02:41]} 34. Kh2 {[%clk 00:02:28]} {[%emt 00:00:56]} Be7 {[%clk 00:10:14]}
{[%emt 00:03:37]} 35. Rce1 {[%clk 00:01:02]} {[%emt 00:01:55]} Bd6+ {[%clk
00:08:16]} {[%emt 00:02:28]} 36. Bf4 {[%clk 00:01:00]} {[%emt 00:00:32]} Rxf5
{[%clk 00:08:02]} {[%emt 00:00:44]} 37. Qe3 {[%clk 00:00:38]} {[%emt 00:00:53]}
Bg2 {[%clk 00:06:15]} {[%emt 00:02:16]} 38. Rf2 {[%clk 00:00:47]} {[%emt
00:00:21]} h3 {[%clk 00:05:30]} {[%emt 00:01:15]} 39. Qg3+ {[%clk 00:00:38]}
{[%emt 00:00:39]} Rg5 {[%clk 00:04:19]} {[%emt 00:01:41]} 40. Qe3 {[%clk
00:00:37]} {[%emt 00:00:31]} Rg4 {[%clk 00:01:19]} {[%emt 00:03:30]} 41. Be5+
{[%clk 00:26:08]} {[%emt 00:04:59]} Bxe5+ {[%clk 00:18:52]} {[%emt 00:12:56]}
42. dxe5 {[%clk 00:26:31]} {[%emt 00:00:07]} Be4 {[%clk 00:11:08]} {[%emt
00:08:15]} 43. Qa7+ {[%clk 00:01:28]} {[%emt 00:25:33]} Kg6 {[%clk 00:09:27]}
{[%emt 00:02:11]} 44. Qxa6+ {[%clk 00:01:50]} {[%emt 00:00:08]} Kh5 {[%clk
00:09:22]} {[%emt 00:00:35]} 45. Qf6 {[%clk 00:02:07]} {[%emt 00:00:13]} Rg6
{[%clk 00:09:01]} {[%emt 00:00:51]} 46. Qf4 {[%clk 00:01:04]} {[%emt 00:01:32]}
Rg4 {[%clk 00:08:00]} {[%emt 00:01:32]} 47. Qf6 {[%clk 00:00:47]} {[%emt
00:00:47]} Bg6 {[%clk 00:06:10]} {[%emt 00:02:20]} 48. Rg1 {[%clk 00:00:35]}
{[%emt 00:00:42]} Qd4 {[%clk 00:04:44]} {[%emt 00:01:56]} 49. Rxg4 {[%clk
00:00:43]} {[%emt 00:00:23]} Qxg4 {[%clk 00:04:59]} {[%emt 00:00:14]} 50. Qf3
{[%clk 00:00:40]} {[%emt 00:00:32]} Bf5 {[%clk 00:05:07]} {[%emt 00:00:22]} 51.
Qxf5+ {[%clk 00:00:51]} {[%emt 00:00:20]} Qg6 {[%emt 00:00:39]} 52. Qf3+ {[%emt
00:00:05]} 1-0

[Event "Masters Tournament (MTO)"]
[Site "Biel, Switzerland"]
[Date "2026.07.20"]
[Round "7.45"]
[White "Alsaleh, Eissa"]
[Black "Malli, Shiivesh Sunil"]
[Result "0-1"]
[TimeControl "100+30+30sec/move"]
[WhiteTitle "-"]
[BlackTitle "-"]
[WhiteFideId "10312463"]
[BlackFideId "1340409"]
[WhiteElo "1908"]
[BlackElo "1994"]

1. e4 {[%clk 01:40:45]} {[%emt 00:00:14]} c5 {[%clk 01:40:48]} {[%emt
00:00:12]} 2. Nf3 {[%clk 01:40:59]} {[%emt 00:00:17]} Nc6 {[%clk 01:41:11]}
{[%emt 00:00:06]} 3. d4 {[%clk 01:41:25]} {[%emt 00:00:05]} cxd4 {[%clk
01:41:34]} {[%emt 00:00:07]} 4. Nxd4 {[%clk 01:41:51]} {[%emt 00:00:04]} g6
{[%clk 01:41:41]} {[%emt 00:00:23]} 5. Nc3 {[%clk 01:42:10]} {[%emt 00:00:12]}
Bg7 {[%clk 01:42:03]} {[%emt 00:00:07]} 6. Be3 {[%clk 01:42:32]} {[%emt
00:00:08]} d6 {[%clk 01:42:07]} {[%emt 00:00:26]} 7. Qd2 {[%clk 01:41:47]}
{[%emt 00:01:15]} Nf6 {[%clk 01:42:16]} {[%emt 00:00:21]} 8. f3 {[%clk
01:41:50]} {[%emt 00:00:28]} h5 {[%clk 01:41:08]} {[%emt 00:01:37]} 9. Be2
{[%clk 01:39:51]} {[%emt 00:02:28]} Bd7 {[%clk 01:41:00]} {[%emt 00:00:39]} 10.
h4 {[%clk 01:36:19]} {[%emt 00:04:01]} a6 {[%clk 01:38:32]} {[%emt 00:02:59]}
11. O-O-O {[%clk 01:34:49]} {[%emt 00:01:59]} b5 {[%clk 01:35:51]} {[%emt
00:03:12]} 12. Nd5 {[%clk 01:30:36]} {[%emt 00:04:42]} Nxd5 {[%clk 01:33:38]}
{[%emt 00:02:44]} 13. Nxc6 {[%clk 01:28:23]} {[%emt 00:02:42]} Bxc6 {[%clk
01:33:12]} {[%emt 00:00:56]} 14. exd5 {[%clk 01:28:28]} {[%emt 00:00:25]} Bd7
{[%clk 01:33:01]} {[%emt 00:00:42]} 15. Kb1 {[%clk 01:23:36]} {[%emt 00:05:21]}
Bf5 {[%clk 01:21:28]} {[%emt 00:12:03]} 16. g4 {[%clk 01:12:37]} {[%emt
00:11:31]} hxg4 {[%clk 01:16:34]} {[%emt 00:05:23]} 17. fxg4 {[%clk 01:12:43]}
{[%emt 00:00:24]} Be4 {[%clk 01:16:32]} {[%emt 00:00:33]} 18. Rhe1 {[%clk
01:11:58]} {[%emt 00:01:14]} Rc8 {[%clk 01:05:59]} {[%emt 00:11:03]} 19. Bd3
{[%clk 01:06:31]} {[%emt 00:05:57]} Bf3 {[%clk 01:00:48]} {[%emt 00:05:41]} 20.
Bg5 {[%clk 00:55:04]} {[%emt 00:11:52]} Bxd1 {[%clk 00:51:55]} {[%emt
00:09:28]} 21. Rxe7+ {[%clk 00:48:56]} {[%emt 00:06:38]} Qxe7 {[%clk 00:52:07]}
{[%emt 00:00:18]} 22. Bxe7 {[%clk 00:49:11]} {[%emt 00:00:14]} Bxc2+ {[%clk
00:52:22]} {[%emt 00:00:16]} 23. Bxc2 {[%clk 00:47:23]} {[%emt 00:02:18]} Kxe7
{[%clk 00:52:45]} {[%emt 00:00:06]} 24. Qe3+ {[%clk 00:45:02]} {[%emt
00:02:52]} Be5 {[%clk 00:49:31]} {[%emt 00:03:43]} 25. Qa7+ {[%clk 00:40:54]}
{[%emt 00:04:38]} Kf6 {[%clk 00:48:27]} {[%emt 00:01:34]} 26. Qxa6 {[%clk
00:34:49]} {[%emt 00:06:35]} Rc5 {[%clk 00:44:48]} {[%emt 00:04:08]} 27. b4
{[%clk 00:28:24]} {[%emt 00:06:56]} Rc4 {[%clk 00:40:54]} {[%emt 00:04:25]} 28.
g5+ {[%clk 00:24:38]} {[%emt 00:04:16]} Kg7 {[%clk 00:40:51]} {[%emt 00:00:33]}
29. Qxb5 {[%clk 00:23:44]} {[%emt 00:01:24]} Rhxh4 {[%clk 00:38:49]} {[%emt
00:02:32]} 30. Kc1 {[%clk 00:14:37]} {[%emt 00:09:37]} Rh1+ {[%clk 00:39:00]}
{[%emt 00:00:18]} 31. Kd2 {[%clk 00:14:31]} {[%emt 00:00:36]} Rh2+ {[%clk
00:39:22]} {[%emt 00:00:09]} 32. Kd3 {[%clk 00:11:39]} {[%emt 00:03:22]} Rcxc2
{[%clk 00:39:42]} {[%emt 00:00:10]} 33. a4 {[%clk 00:11:14]} {[%emt 00:00:56]}
Rc3+ {[%clk 00:40:07]} {[%emt 00:00:04]} 0-1

[Event "Masters Tournament (MTO)"]
[Site "Biel, Switzerland"]
[Date "2026.07.20"]
[Round "7.46"]
[White "Wenger, Arejou"]
[Black "Hajduk, Tomasz"]
[Result "1-0"]
[TimeControl "100+30+30sec/move"]
[WhiteTitle "-"]
[BlackTitle "-"]
[WhiteFideId "1336584"]
[BlackFideId "21811415"]
[WhiteElo "1873"]
[BlackElo "1921"]

1. e4 {[%clk 01:40:58]} {[%emt 00:00:01]} c5 {[%clk 01:40:59]} {[%emt
00:00:02]} 2. Nf3 {[%clk 01:41:24]} {[%emt 00:00:04]} d6 {[%clk 01:41:24]}
{[%emt 00:00:05]} 3. d4 {[%clk 01:41:48]} {[%emt 00:00:06]} cxd4 {[%clk
01:41:50]} {[%emt 00:00:04]} 4. Nxd4 {[%clk 01:42:14]} {[%emt 00:00:04]} Nf6
{[%clk 01:42:14]} {[%emt 00:00:06]} 5. Nc3 {[%clk 01:42:39]} {[%emt 00:00:05]}
a6 {[%clk 01:42:40]} {[%emt 00:00:04]} 6. f3 {[%clk 01:42:37]} {[%emt
00:00:31]} e5 {[%clk 01:42:52]} {[%emt 00:00:18]} 7. Nb3 {[%clk 01:42:58]}
{[%emt 00:00:10]} Be6 {[%clk 01:43:10]} {[%emt 00:00:11]} 8. Be3 {[%clk
01:43:20]} {[%emt 00:00:08]} Be7 {[%clk 01:43:19]} {[%emt 00:00:21]} 9. Qd2
{[%clk 01:43:41]} {[%emt 00:00:10]} Nbd7 {[%clk 01:43:40]} {[%emt 00:00:09]} 10.
g4 {[%clk 01:40:45]} {[%emt 00:03:25]} b5 {[%clk 01:44:03]} {[%emt 00:00:07]}
11. g5 {[%clk 01:37:06]} {[%emt 00:04:09]} Nh5 {[%clk 01:44:07]} {[%emt
00:00:27]} 12. O-O-O {[%clk 01:33:29]} {[%emt 00:04:05]} O-O {[%clk 01:42:02]}
{[%emt 00:02:36]} 13. h4 {[%clk 01:18:52]} {[%emt 00:15:08]} Qc7 {[%clk
01:37:17]} {[%emt 00:05:15]} 14. Bh3 {[%clk 01:03:31]} {[%emt 00:15:50]} Nb6
{[%clk 01:27:07]} {[%emt 00:10:40]} 15. Na5 {[%clk 01:01:32]} {[%emt 00:02:29]}
b4 {[%clk 01:14:50]} {[%emt 00:12:47]} 16. Ne2 {[%clk 01:00:16]} {[%emt
00:01:45]} d5 {[%clk 01:10:57]} {[%emt 00:04:24]} 17. Bg4 {[%clk 00:58:05]}
{[%emt 00:02:41]} d4 {[%clk 01:08:08]} {[%emt 00:03:20]} 18. Bxd4 {[%clk
00:52:09]} {[%emt 00:06:26]} exd4 {[%clk 01:08:03]} {[%emt 00:00:35]} 19. Bxh5
{[%clk 00:52:20]} {[%emt 00:00:19]} Rfd8 {[%clk 00:42:43]} {[%emt 00:25:49]} 20.
Kb1 {[%clk 00:38:12]} {[%emt 00:14:37]} Na4 {[%clk 00:26:00]} {[%emt 00:17:14]}
21. Nb3 {[%clk 00:37:49]} {[%emt 00:00:52]} Bxb3 {[%clk 00:19:46]} {[%emt
00:06:46]} 22. cxb3 {[%clk 00:33:44]} {[%emt 00:04:33]} Nc5 {[%clk 00:19:10]}
{[%emt 00:01:08]} 23. Nf4 {[%clk 00:31:54]} {[%emt 00:02:18]} Ne6 {[%clk
00:12:42]} {[%emt 00:06:58]} 24. Nd5 {[%clk 00:30:59]} {[%emt 00:01:26]} Qb7
{[%clk 00:11:54]} {[%emt 00:01:18]} 25. f4 {[%clk 00:28:28]} {[%emt 00:03:01]}
Bc5 {[%clk 00:11:50]} {[%emt 00:00:35]} 26. Rc1 {[%clk 00:20:04]} {[%emt
00:08:54]} Rxd5 {[%clk 00:09:27]} {[%emt 00:02:52]} 27. exd5 {[%clk 00:19:52]}
{[%emt 00:00:42]} Qxd5 {[%clk 00:09:54]} {[%emt 00:00:03]} 28. Bg4 {[%clk
00:16:52]} {[%emt 00:03:29]} Rd8 {[%clk 00:05:57]} {[%emt 00:04:28]} 29. Bxe6
{[%clk 00:14:11]} {[%emt 00:03:11]} Qxe6 {[%clk 00:06:10]} {[%emt 00:00:17]} 30.
Rhe1 {[%clk 00:13:44]} {[%emt 00:00:57]} Qf5+ {[%clk 00:05:52]} {[%emt
00:00:49]} 31. Qc2 {[%clk 00:12:05]} {[%emt 00:02:09]} Qxc2+ {[%clk 00:05:56]}
{[%emt 00:00:25]} 32. Rxc2 {[%clk 00:10:06]} {[%emt 00:02:29]} Bd6 {[%clk
00:06:13]} {[%emt 00:00:13]} 33. Rd2 {[%clk 00:08:34]} {[%emt 00:02:02]} Bc5
{[%clk 00:05:47]} {[%emt 00:00:57]} 34. Kc2 {[%clk 00:08:23]} {[%emt 00:00:39]}
g6 {[%clk 00:05:48]} {[%emt 00:00:31]} 35. Kd3 {[%clk 00:08:36]} {[%emt
00:00:15]} Bd6 {[%clk 00:05:41]} {[%emt 00:00:38]} 36. Re4 {[%clk 00:08:10]}
{[%emt 00:00:54]} Bc5 {[%clk 00:04:06]} {[%emt 00:02:07]} 37. Rc2 {[%clk
00:06:34]} {[%emt 00:02:06]} Bb6 {[%clk 00:03:15]} {[%emt 00:01:22]} 38. Rce2
{[%clk 00:03:09]} {[%emt 00:03:54]} Kg7 {[%clk 00:01:50]} {[%emt 00:01:55]} 39.
Re8 {[%clk 00:03:07]} {[%emt 00:00:31]} Rd5 {[%clk 00:00:46]} {[%emt 00:01:35]}
40. Rc8 {[%clk 00:01:16]} {[%emt 00:02:19]} Bc5 {[%clk 00:00:39]} {[%emt
00:00:39]} 41. Ree8 {[%clk 00:00:50]} {[%emt 00:00:56]} 1-0